bitfinex/quotes_ETHUSD_20241108
["timestamp","ask_amount","ask_price","bid_price","bid_amount"]
[1731107118580,0.8294,2956.9,2955.9,0.0676454]
[1731107118738,0.8294,2956.9,2956.1,2.88974534]
[1731107118936,0.8294,2956.9,2956.2,0.06764197]
[1731107120783,0.8294,2956.9,2956.4,2.88974534]
[1731107121079,0.8294,2956.9,2956.5,0.06763715]
[1731107121694,0.8294,2956.9,2956.4,2.88974534]
[1731107121988,0.8294,2956.9,2956.5,0.06763507]
[1731107123285,0.8294,2956.9,2956.4,2.88974534]
[1731107125300,0.8294,2956.9,2956.5,0.06763634]
[1731107125453,0.8294,2956.9,2955.8,5.0549441]
[1731107125654,0.8294,2956.9,2955.9,0.06764522]
[1731107127304,0.8294,2956.9,2956.1,2.88974534]
[1731107127464,0.8294,2956.9,2956.2,0.06764055]
[1731107127665,0.8294,2956.9,2956.3,0.06763842]
[1731107128492,0.8294,2956.9,2956.2,0.06763841]
[1731107129199,0.756,2957.2,2956.7,2.88974534]
[1731107129506,0.756,2957.2,2956.8,0.06763057]
[1731107130257,0.80674002,2957.5,2956.8,0.06763057]
[1731107130458,0.80674002,2957.5,2957.0,2.88974534]
[1731107130685,0.05074002,2957.5,2957.3,2.88974534]
[1731107130950,0.05074002,2957.5,2957.4,0.06761555]
[1731107132378,0.05074002,2957.5,2957.3,2.95736231]
[1731107132898,0.05074002,2957.5,2957.4,0.8198]
[1731107133065,0.05074002,2957.5,2957.3,2.88974534]
[1731107135168,0.05074002,2957.5,2957.2,2.16519876]
[1731107135502,0.05074002,2957.5,2957.3,0.06761337]
[1731107135862,0.05074002,2957.5,2957.1,2.88974534]
[1731107136579,0.05074002,2957.5,2957.0,2.16519876]
[1731107136580,0.7744,2957.4,2957.0,2.16519876]
[1731107136786,0.7744,2957.4,2956.5,3.0]
[1731107136787,0.7744,2957.4,2956.5,5.0549441]
[1731107137014,0.7744,2957.4,2956.5,2.88974534]
[1731107137704,0.7744,2957.4,2956.6,0.06762691]
[1731107138111,0.7744,2957.4,2956.5,2.88974534]
[1731107138630,0.7744,2957.4,2956.6,0.06762695]
[1731107139120,0.7744,2957.4,2956.8,2.88974534]
[1731107139294,0.7744,2957.4,2956.9,0.06762691]
[1731107139647,0.7744,2957.4,2957.1,2.88974534]
[1731107139919,0.05074002,2957.5,2957.1,2.88974534]
[1731107140725,0.05074002,2957.5,2957.2,0.06761484]
[1731107142123,0.05074002,2957.5,2957.1,2.88974534]
[1731107142682,0.05074002,2957.5,2957.2,0.067615]
[1731107143918,0.05074002,2957.5,2957.2,2.23281376]
[1731107144123,0.05074002,2957.5,2957.2,2.16519876]
[1731107144646,0.05074002,2957.5,2957.3,0.06761498]
[1731107144935,0.05074002,2957.5,2957.2,2.16519876]
[1731107145139,0.05074002,2957.5,2957.3,0.06761494]
[1731107146050,0.05074002,2957.5,2957.2,2.16519876]
[1731107146540,0.05074002,2957.5,2957.3,0.06761497]
[1731107146748,0.05074002,2957.5,2957.4,2.88974534]
[1731107146899,0.05074002,2957.5,2957.4,8.0549441]
[1731107149248,0.05074002,2957.5,2957.4,2.16519876]
[1731107149456,0.87324002,2957.5,2957.4,2.16519876]
[1731107151837,0.87324002,2957.5,2956.9,2.16519876]
[1731107152757,0.87324002,2957.5,2957.0,0.06762413]
[1731107153336,0.87324002,2957.5,2956.9,2.16519876]
[1731107153542,0.87324002,2957.5,2957.0,0.06762401]
[1731107153914,0.87324002,2957.5,2956.9,2.16519876]
[1731107155761,0.87324002,2957.5,2956.8,2.88974534]
[1731107158011,0.87324002,2957.5,2956.9,0.0676241]
[1731107158413,0.87324002,2957.5,2956.8,2.88974534]
[1731107158969,1.37324002,2957.5,2956.9,0.0676241]
[1731107159469,1.37324002,2957.5,2956.8,2.88974534]
[1731107159656,1.37324002,2957.5,2956.9,0.06762409]
[1731107160552,1.37324002,2957.5,2956.8,2.88974534]
[1731107165654,1.37324002,2957.5,2956.9,0.86758178]
[1731107165972,1.37324002,2957.5,2956.8,2.88974534]
[1731107166487,1.37324002,2957.5,2956.9,0.86776514]
[1731107167002,0.55074002,2957.5,2957.2,2.88974534]
[1731107167360,0.55074002,2957.5,2956.9,3.69636674]
[1731107167561,0.55074002,2957.5,2957.0,0.86771895]
[1731107167782,0.55074002,2957.5,2956.9,2.16519876]
[1731107168154,0.5,2957.5,2957.0,0.9354839]
[1731107168695,0.5,2957.5,2957.3,0.8115]
[1731107168897,0.5,2957.5,2957.4,0.06761625]
[1731107169197,0.5,2957.5,2957.3,0.8115]
[1731107170252,0.5,2957.5,2957.4,0.93507559]
[1731107170490,0.5,2957.5,2957.4,0.93511098]
[1731107170700,0.5,2957.5,2957.3,0.8115]
[1731107171272,0.5,2957.5,2957.4,0.06761603]
[1731107171603,0.5,2957.5,2957.4,0.93508679]
[1731107171960,1.05607803,2958.9,2957.6,0.8115]
[1731107172180,1.81907803,2959.3,2958.5,2.88974534]
[1731107172383,0.763,2959.3,2958.6,2.16519876]
[1731107173055,0.763,2959.3,2958.7,0.06758155]
[1731107173372,0.763,2959.3,2958.7,0.067581]
[1731107173570,0.763,2959.3,2958.6,2.16519876]
[1731107176132,0.763,2959.3,2958.7,0.55]
[1731107176488,0.763,2959.3,2958.8,2.16519876]
[1731107178834,0.8154,2960.1,2958.9,2.16519876]
[1731107178984,0.8154,2960.1,2958.8,2.88974534]
[1731107178985,0.8154,2960.1,2959.0,2.16519876]
[1731107182016,0.8154,2960.1,2959.1,0.06757505]
[1731107182199,0.8154,2960.1,2959.0,2.95079876]
[1731107182504,0.8154,2960.1,2959.1,2.16519876]
[1731107183028,0.8154,2960.1,2959.1,5.0549441]
[1731107183405,0.8154,2960.1,2959.2,0.06756742]
[1731107188339,0.8154,2960.1,2959.2,2.23276618]
[1731107189159,0.8154,2960.1,2959.2,2.23276373]
[1731107189309,0.8154,2960.1,2959.3,0.7516]
[1731107189509,0.7678,2960.7,2959.5,0.55]
[1731107189857,0.7678,2960.7,2959.7,0.7516]
[1731107192520,0.7678,2960.7,2959.7,2.91679876]
[1731107195055,0.7678,2960.7,2959.7,5.8065441]
[1731107195411,0.7678,2960.7,2959.8,0.8088]
[1731107197535,0.7678,2960.7,2959.9,0.0675554]
[1731107198117,0.05070706,2960.8,2960.0,3.69704534]
[1731107198323,0.05070706,2960.8,2960.1,0.06754786]
[1731107198522,0.05070706,2960.8,2960.1,2.23274662]
[1731107199220,0.05070706,2960.8,2960.2,0.8073]
[1731107199421,0.05070706,2960.8,2960.3,0.06754542]
[1731107201059,0.05070706,2960.8,2960.2,2.97249876]
[1731107201274,0.05070706,2960.8,2960.3,0.06754118]
[1731107201572,0.05070706,2960.8,2960.4,0.8073]
[1731107201717,0.05070706,2960.8,2960.5,0.06754121]
[1731107202339,0.05070706,2960.8,2960.6,0.8073]
[1731107202554,0.05070706,2960.8,2960.7,0.06753584]
[1731107203328,0.05070706,2960.8,2960.7,0.87483584]
[1731107203524,0.05070706,2960.8,2960.7,1.3573]
[1731107205618,0.05070706,2960.8,2960.7,4.3573]
[1731107206058,0.05070706,2960.8,2960.7,6.52249876]
[1731107206447,0.05070706,2960.8,2960.7,6.59002675]
[1731107207236,0.05070706,2960.8,2960.7,2.97249876]
[1731107208084,0.05070706,2960.8,2960.7,2.16519876]
[1731107211252,0.05070706,2960.8,2960.7,2.97249876]
[1731107212491,0.05070706,2960.8,2960.7,3.04003021]
[1731107212694,0.05070706,2960.8,2960.7,3.04003009]
[1731107213357,0.05070706,2960.8,2960.7,3.52249876]
[1731107216041,0.3509552,2962.3,2960.8,1.328]
[1731107216042,0.8307,2962.1,2960.8,1.328]
[1731107216248,0.8307,2962.1,2960.9,2.23272485]
[1731107217182,0.8307,2962.1,2960.9,2.16519876]
[1731107218645,0.8307,2962.1,2961.0,0.06752609]
[1731107218847,0.8307,2962.1,2961.2,0.778]
[1731107219143,0.8307,2962.1,2961.3,0.06752329]
[1731107220690,0.35263133,2962.7,2961.4,2.16519876]
[1731107220691,0.8307,2962.6,2961.4,2.16519876]
[1731107220889,0.8307,2962.6,2961.5,2.16519876]
[1731107222932,0.8307,2962.5,2961.5,2.16519876]
[1731107223089,0.7851,2962.3,2961.5,2.16519876]
[1731107223296,2.88974534,2962.1,2961.5,2.16519876]
[1731107223496,0.7851,2961.9,2960.8,2.16519876]
[1731107223673,0.7851,2961.9,2960.7,0.7517]
[1731107224061,0.7851,2961.9,2960.8,0.06753701]
[1731107224266,0.7851,2961.8,2960.8,0.06753701]
[1731107224914,0.7851,2961.8,2960.7,0.7517]
[1731107225221,0.7851,2961.8,2960.1,2.88974534]
[1731107225222,0.7851,2961.6,2960.3,2.91689876]
[1731107225384,0.7851,2961.6,2960.4,0.06754088]
[1731107225900,0.7851,2961.6,2960.4,2.95728622]
[1731107227307,0.7851,2961.6,2960.5,1.3017]
[1731107227479,0.7851,2961.6,2960.5,4.3017]
[1731107228470,0.7851,2961.6,2960.6,0.06753055]
[1731107229880,0.7851,2961.6,2960.7,2.16519876]
[1731107230075,0.7851,2961.6,2960.9,0.7517]
[1731107230304,0.7851,2961.6,2961.0,0.06753039]
[1731107232271,0.7851,2961.6,2960.9,0.7517]
[1731107232479,0.7851,2961.6,2961.0,0.06753001]
[1731107232667,0.7851,2961.6,2960.9,0.7517]
[1731107233367,0.7851,2961.6,2961.0,0.06753001]
[1731107233811,0.7851,2961.6,2960.9,0.7517]
[1731107234425,0.7851,2961.6,2960.7,2.16519876]
[1731107234719,0.7851,2961.6,2960.8,0.06753228]
[1731107235007,0.7851,2961.6,2960.7,2.16519876]
[1731107235572,0.7851,2961.6,2960.8,0.06753227]
[1731107235813,0.7851,2961.6,2960.8,2.23273103]
[1731107236502,0.7851,2961.6,2960.8,2.16519876]
[1731107239270,0.7851,2961.6,2960.9,0.06753549]
[1731107239476,0.7851,2961.6,2960.8,2.16519876]
[1731107240108,0.7851,2961.6,2960.9,0.06753549]
[1731107240578,0.7851,2961.6,2960.8,2.16519876]
[1731107240890,0.7851,2961.6,2960.9,0.06753549]
[1731107241209,0.7851,2961.6,2960.8,2.16519876]
[1731107241821,0.7851,2961.6,2960.6,2.92239876]
[1731107242503,0.7851,2961.6,2960.6,2.16519876]
[1731107244398,0.753,2961.4,2960.6,2.16519876]
[1731107246488,0.753,2961.4,2960.7,0.0675398]
[1731107246684,0.753,2961.4,2960.6,2.16519876]
[1731107247626,0.753,2961.4,2960.3,2.16519876]
[1731107251138,3.64274534,2961.4,2960.2,1.04455011]
[1731107251432,0.753,2961.2,2960.2,1.04455011]
[1731107252143,0.753,2960.8,2959.8,2.16519876]
[1731107252362,0.753,2960.8,2959.7,2.16519876]
[1731107253635,0.8024,2960.5,2959.2,2.16519876]
[1731107253845,0.8024,2960.5,2959.0,2.16519876]
[1731107253846,0.8024,2960.2,2959.0,2.16519876]
[1731107254049,0.8024,2960.1,2958.7,2.86329729]
[1731107254250,6.95021299,2960.2,2958.7,2.16519876]
[1731107254251,0.8024,2959.9,2958.7,2.16519876]
[1731107254552,0.8024,2959.9,2958.5,2.16519876]
[1731107256002,0.8024,2959.9,2958.6,0.06758662]
[1731107256935,0.8024,2959.9,2958.5,2.16519876]
[1731107257113,0.8024,2959.9,2958.6,0.06758662]
[1731107259623,0.8024,2959.9,2958.5,0.06758293]
[1731107259827,1.26622317,2959.9,2958.5,0.06758293]
[1731107260043,0.8024,2959.9,2958.6,0.7635]
[1731107260339,0.8024,2959.9,2958.4,5.0549441]
[1731107260340,0.8024,2959.9,2958.4,2.16519876]
[1731107260644,0.8024,2959.9,2958.5,0.06758641]
[1731107261403,0.8024,2959.9,2958.4,2.16519876]
[1731107262956,3.0,2960.1,2959.0,2.88974534]
[1731107262957,0.7827,2960.1,2959.0,2.88974534]
[1731107263153,0.7827,2960.1,2959.1,0.06757319]
[1731107264153,0.7827,2960.1,2958.8,3.0]
[1731107264577,0.7827,2960.1,2958.6,3.0]
[1731107264865,0.7827,2960.1,2958.5,2.92869876]
[1731107264866,0.7827,2960.1,2958.9,3.0]
[1731107265823,0.7827,2960.1,2958.6,3.0]
[1731107266027,0.7927,2960.1,2958.5,5.0549441]
[1731107266271,0.7927,2960.1,2957.9,0.76985935]
[1731107266272,0.7827,2959.8,2958.1,5.0549441]
[1731107266446,0.7827,2959.8,2958.2,0.06759079]
[1731107266638,0.7927,2959.5,2958.0,2.16519876]
[1731107267337,0.7827,2959.5,2958.0,2.16519876]
[1731107267668,0.7827,2959.5,2958.1,0.06759924]
[1731107268161,0.7827,2959.5,2958.0,2.16519876]
[1731107269330,0.7827,2959.5,2958.1,0.06759673]
[1731107270067,0.7827,2959.5,2958.0,2.16519876]
[1731107270269,0.7827,2959.5,2958.1,0.06759673]
[1731107270565,0.7827,2959.5,2958.0,2.16519876]
[1731107271269,3.01,2959.8,2957.9,2.16519876]
[1731107271270,0.01,2959.2,2957.9,2.16519876]
[1731107271431,0.7827,2958.8,2957.3,2.92869876]
[1731107272175,0.7827,2958.8,2957.1,2.88974534]
[1731107272176,0.7927,2958.8,2957.1,2.88974534]
[1731107272384,0.7827,2958.5,2957.0,2.16519876]
[1731107272735,0.7827,2958.3,2957.0,2.16519876]
[1731107274050,0.7827,2958.3,2957.1,0.06762095]
[1731107274252,0.7827,2958.3,2957.0,2.16519876]
[1731107276879,0.7827,2958.3,2957.1,2.88974534]
[1731107277183,0.7827,2958.3,2957.2,0.06761709]
[1731107277474,0.7827,2958.3,2957.4,2.88974534]
[1731107277678,0.7827,2958.3,2957.5,0.06761589]
[1731107278647,0.7827,2958.3,2957.6,0.06761207]
[1731107278847,0.7827,2958.3,2957.7,2.88974534]
[1731107279103,0.7827,2958.3,2957.7,5.0549441]
[1731107280505,0.7827,2958.3,2957.7,2.88974534]
[1731107284430,0.7827,2958.3,2957.8,0.06760409]
[1731107284933,0.7827,2958.3,2957.7,2.88974534]
[1731107285590,0.7827,2958.3,2957.7,2.88815833]
[1731107287819,0.7827,2958.3,2957.8,0.06760412]
[1731107288886,0.7827,2958.3,2957.7,2.88815833]
[1731107289617,0.7827,2958.3,2957.8,0.06760414]
[1731107291735,0.8208,2959.6,2958.0,2.88974534]
[1731107291940,0.8208,2959.6,2958.3,2.88974534]
[1731107292106,0.8208,2959.6,2958.4,0.06759144]
[1731107294140,0.8208,2959.6,2958.6,2.88974534]
[1731107296126,0.8208,2959.6,2958.0,2.86243842]
[1731107296357,0.7972,2959.4,2958.0,2.16519876]
[1731107297208,0.7972,2959.4,2958.1,0.06759686]
[1731107298167,0.7972,2959.4,2958.1,2.9573422]
[1731107298368,0.7972,2959.4,2958.2,0.87425938]
[1731107299123,0.7972,2959.4,2958.1,3.586985]
[1731107299392,0.7972,2959.4,2958.1,2.88974534]
[1731107299746,0.7972,2959.4,2958.0,2.16519876]
[1731107300066,0.8297,2959.0,2958.0,2.16519876]
[1731107300365,0.8297,2959.0,2957.8,2.23280777]
[1731107300665,0.8297,2959.0,2957.9,0.87528201]
[1731107300869,0.8297,2959.0,2958.0,0.067599]
[1731107302387,0.8297,2959.0,2957.9,1.57252167]
[1731107302534,0.8297,2959.0,2958.1,0.06759376]
[1731107303034,0.8297,2959.0,2957.9,1.57252167]
[1731107303774,0.8297,2959.0,2958.0,0.87451362]
[1731107303938,0.8297,2959.0,2958.0,2.16519876]
[1731107304573,0.8297,2959.0,2958.1,0.87426355]
[1731107304776,0.8297,2959.0,2958.2,0.06759382]
[1731107305073,0.8297,2959.0,2958.1,5.22244855]
[1731107305235,0.8297,2959.0,2958.2,1.57150321]
[1731107306273,0.8297,2959.0,2958.2,0.87426355]
[1731107306792,0.8297,2959.0,2958.0,2.86243842]
[1731107306947,0.8297,2959.0,2958.1,0.87404045]
[1731107307285,0.8297,2959.0,2958.1,0.82404045]
[1731107308042,0.8297,2959.0,2958.2,0.06759522]
[1731107309667,0.8297,2959.0,2958.0,2.16519876]
[1731107310307,0.8297,2959.0,2958.0,2.86243842]
[1731107311169,0.8297,2959.0,2958.0,2.16519876]
[1731107311375,0.8297,2959.0,2958.0,2.86243842]
[1731107313294,0.8297,2959.0,2958.1,3.6545803]
[1731107317211,0.8297,2959.0,2958.2,0.87440771]
[1731107317400,0.8297,2959.0,2958.3,0.06759528]
[1731107317992,0.8297,2959.0,2958.4,0.06759535]
[1731107318518,0.8297,2959.0,2958.2,0.94200222]
[1731107319872,0.8297,2959.0,2958.2,1.63924188]
[1731107320110,0.8297,2959.0,2958.2,1.57164652]
[1731107320318,0.8297,2959.0,2958.2,1.63923849]
[1731107321199,0.8297,2959.0,2958.3,0.69723966]
[1731107321372,0.8297,2959.0,2958.4,0.06759145]
[1731107321570,0.8297,2959.0,2958.4,2.16519876]
[1731107321814,0.8297,2959.0,2958.5,0.87457863]
[1731107322712,0.8297,2959.0,2958.5,1.57181829]
[1731107323284,0.8297,2959.0,2958.6,0.0675887]
[1731107323718,0.8297,2959.0,2958.5,1.57181829]
[1731107324204,0.8297,2959.0,2958.6,0.87474334]
[1731107324379,0.8297,2959.0,2958.7,0.87474334]
[1731107324584,0.8297,2959.0,2958.6,0.0675887]
[1731107324799,0.8297,2959.0,2958.5,1.57210848]
[1731107325912,0.8297,2959.0,2958.6,0.69723966]
[1731107326112,0.8297,2959.0,2958.5,1.57210848]
[1731107326325,0.8297,2959.0,2958.6,0.69723966]
[1731107326493,0.8297,2959.0,2958.6,1.57210848]
[1731107326695,0.8297,2959.0,2958.7,0.87486882]
[1731107326935,0.8297,2959.0,2958.8,0.06758846]
[1731107327225,0.8297,2959.0,2958.6,0.69723966]
[1731107327592,0.8297,2959.0,2958.5,3.73708693]
[1731107327795,0.8297,2959.0,2958.6,1.57178668]
[1731107328711,0.8297,2959.0,2958.6,0.87454702]
[1731107329440,0.8297,2959.0,2958.6,1.57178668]
[1731107330124,0.8297,2959.0,2958.7,0.87454702]
[1731107330337,0.8297,2959.0,2958.6,0.69723966]
[1731107330540,0.8297,2959.0,2958.6,1.57142204]
[1731107330706,0.8297,2959.0,2958.5,2.16519876]
[1731107331394,1.0582854,2959.1,2958.5,2.16519876]
[1731107331395,0.8177,2958.8,2958.5,2.16519876]
[1731107333735,0.8177,2958.8,2958.3,0.06759683]
[1731107336854,0.8177,2958.8,2957.9,0.69723966]
[1731107336998,0.8177,2958.8,2957.9,1.57178552]
[1731107337194,0.8177,2958.8,2958.0,0.87454586]
[1731107337393,0.94649854,2958.7,2957.9,0.69723966]
[1731107337771,0.94649854,2958.7,2957.8,1.63939518]
[1731107338234,0.94649854,2958.7,2957.8,0.87455253]
[1731107338235,2.00478394,2958.7,2957.8,0.87455253]
[1731107338433,0.8037,2958.5,2957.7,2.16519876]
[1731107342402,0.8037,2958.5,2957.5,0.06761125]
[1731107342702,0.8037,2958.5,2957.4,1.57219139]
[1731107343460,0.8037,2958.5,2957.5,0.76485089]
[1731107343666,0.8037,2958.5,2957.6,3.70034534]
[1731107343860,0.8037,2958.5,2957.7,0.87495173]
[1731107344626,0.8037,2958.5,2957.7,1.57219139]
[1731107344827,0.8037,2958.5,2957.7,0.87495173]
[1731107345735,0.8037,2958.5,2957.6,4.397585]
[1731107345941,0.8037,2958.5,2957.7,0.8745869]
[1731107346275,0.8037,2958.5,2957.6,2.88974534]
[1731107346465,0.8037,2958.5,2957.7,0.06761034]
[1731107347635,0.8037,2958.5,2957.6,2.88974534]
[1731107347874,0.8037,2958.5,2957.7,0.06761035]
[1731107348181,0.8037,2958.5,2958.0,2.88974534]
[1731107348481,0.8037,2958.5,2958.1,0.87426105]
[1731107349638,0.8037,2958.5,2958.2,0.06759815]
[1731107349875,0.8037,2958.5,2958.2,0.9418592]
[1731107350075,0.8037,2958.5,2958.1,0.69723966]
[1731107350250,0.8037,2958.5,2958.1,1.57136868]
[1731107350459,0.8037,2958.5,2958.1,0.69723966]
[1731107350677,0.7569,2959.4,2958.2,0.06759811]
[1731107350979,0.7569,2959.3,2958.6,2.88974534]
[1731107351141,0.7569,2959.3,2958.7,0.06758641]
[1731107352873,0.7569,2959.3,2958.6,2.88974534]
[1731107353240,0.7569,2959.3,2958.7,0.06758758]
[1731107354847,0.7569,2959.3,2958.7,0.94212429]
[1731107355048,0.7569,2959.3,2958.7,0.06758758]
[1731107355466,0.7569,2959.3,2958.7,0.94204546]
[1731107355637,0.7569,2959.3,2958.9,2.88974534]
[1731107355855,0.7575,2959.9,2959.0,0.06758105]
[1731107357347,0.7575,2959.9,2958.9,2.88974534]
[1731107358175,0.7575,2959.9,2959.0,0.0675796]
[1731107358681,0.7575,2959.9,2959.0,0.94226954]
[1731107358892,0.7575,2959.9,2959.0,0.0675796]
[1731107359391,0.7575,2959.9,2959.2,2.88974534]
[1731107359588,0.0507004,2960.0,2959.4,0.7532]
[1731107359756,0.0507004,2960.0,2959.9,0.7532]
[1731107359958,0.0507004,2960.0,2959.9,0.82076049]
[1731107363772,0.8238004,2960.0,2959.6,2.16519876]
[1731107363981,0.8238004,2960.0,2959.7,0.06756623]
[1731107364166,0.0507004,2960.0,2959.7,0.06756623]
[1731107369464,0.0507004,2960.0,2959.6,0.06756491]
[1731107371007,0.0507004,2960.0,2959.6,2.23276367]
[1731107371297,0.0507004,2960.0,2959.6,5.0549441]
[1731107375170,0.0507004,2960.0,2959.7,0.06756133]
[1731107378911,0.0507004,2960.0,2959.6,5.0549441]
[1731107379283,0.7606,2959.9,2959.6,2.16519876]
[1731107379491,0.7606,2959.9,2959.6,2.23276129]
[1731107381100,0.7606,2959.9,2959.6,0.06756253]
[1731107381299,0.7606,2959.9,2959.4,0.06756905]
[1731107381614,0.7606,2959.9,2959.3,1.351332]
[1731107381921,0.7606,2959.9,2958.9,2.16519876]
[1731107382070,0.7606,2959.9,2958.9,3.51669076]
[1731107382270,0.7606,2959.9,2958.9,2.16519876]
[1731107386910,0.7606,2959.9,2958.8,3.0]
[1731107388531,0.7606,2959.9,2958.7,5.16519876]
[1731107388741,0.7606,2959.9,2958.8,5.16519876]
[1731107389125,0.7606,2959.9,2958.8,2.16519876]
[1731107392139,0.7606,2959.9,2955.6,1.66465903]
[1731107392140,0.7606,2959.6,2958.5,1.33114673]
[1731107392336,0.7606,2959.4,2958.5,1.33114673]
[1731107393445,0.7606,2959.4,2958.2,2.88457125]
[1731107393655,0.7606,2959.4,2958.3,0.8732634]
[1731107394154,0.7606,2959.4,2958.2,3.58863849]
[1731107394447,0.7606,2959.4,2958.3,0.87367586]
[1731107394804,0.7606,2959.4,2958.2,3.58863849]
[1731107395009,0.7606,2959.4,2958.3,0.8736734]
[1731107395732,0.7606,2959.4,2958.3,3.03887216]
[1731107396048,0.7606,2959.4,2958.3,2.16519876]
[1731107396252,0.7606,2959.4,2958.4,0.87384891]
[1731107398023,0.7606,2959.4,2958.5,2.95216175]
[1731107399958,0.7606,2959.4,2959.1,2.88457125]
[1731107400617,0.7606,2959.4,2958.8,3.58863849]
[1731107400818,0.7606,2959.4,2958.8,2.88457125]
[1731107404315,0.7606,2959.4,2958.5,3.58863849]
[1731107404521,0.7606,2959.4,2958.5,2.88457125]
[1731107406219,0.7606,2959.4,2958.6,0.06759422]
[1731107408342,0.7606,2959.4,2958.8,2.88457125]
[1731107408864,0.7606,2959.4,2958.5,2.88457125]
[1731107409293,0.7606,2959.4,2958.3,2.869266]
[1731107409433,0.7606,2959.4,2958.3,2.16519876]
[1731107411371,0.7606,2959.4,2957.8,3.58863849]
[1731107411577,0.7606,2959.4,2958.1,2.88457125]
[1731107412068,0.7606,2959.4,2957.9,0.0676026]
[1731107412245,0.7606,2959.4,2958.0,2.88457125]
[1731107412453,0.7606,2959.4,2958.1,0.06760258]
[1731107414951,0.7606,2959.4,2958.3,2.88457125]
[1731107415583,0.7606,2959.4,2958.2,0.06758926]
[1731107415940,0.7606,2959.4,2958.1,0.8749294]
[1731107416654,0.7606,2959.4,2958.1,3.04012816]
[1731107416970,0.7606,2959.4,2958.1,2.16519876]
[1731107419324,0.7606,2959.4,2958.2,0.87524456]
[1731107419531,0.7606,2959.4,2958.3,0.06759381]
[1731107422411,0.7606,2959.4,2958.2,0.94340038]
[1731107422804,0.7606,2959.4,2958.3,2.88457125]
[1731107423007,0.7606,2959.4,2958.4,0.06759382]
[1731107425167,0.7606,2959.4,2958.4,0.94436053]
[1731107426309,0.94246053,2959.4,2958.4,0.94436053]
[1731107426813,0.94246053,2959.4,2958.4,0.87676671]
[1731107427226,0.94246053,2959.4,2958.5,0.87729635]
[1731107427433,0.94246053,2959.4,2958.4,1.33134335]
[1731107427745,0.94246053,2959.4,2958.5,0.94488602]
[1731107427911,0.788,2959.2,2958.5,0.94488602]
[1731107428111,0.788,2959.2,2958.5,0.06759388]
[1731107428619,0.788,2959.2,2958.4,2.03541059]
[1731107428822,0.788,2959.2,2958.5,0.8774194]
[1731107429132,0.788,2959.2,2958.4,1.33134335]
[1731107429305,0.788,2959.2,2958.5,0.87747289]
[1731107429715,0.788,2959.2,2958.4,2.03541059]
[1731107429917,0.788,2959.2,2958.5,0.87745388]
[1731107430813,0.788,2959.2,2958.5,0.94504777]
[1731107431341,0.788,2959.2,2958.5,0.87745388]
[1731107431706,0.788,2959.2,2958.5,0.94504776]
[1731107431911,0.788,2959.2,2958.5,0.06759388]
[1731107432109,0.788,2959.2,2958.5,0.94520536]
[1731107433958,0.788,2959.2,2958.7,1.33134335]
[1731107434144,0.7534,2959.6,2959.0,1.33134335]
[1731107434311,0.7534,2959.6,2959.4,1.33134335]
[1731107435422,0.7534,2959.6,2959.3,0.70406724]
[1731107436336,0.7534,2959.6,2959.3,0.87749457]
[1731107436511,0.7534,2959.6,2959.3,1.58156181]
[1731107436713,0.7534,2959.6,2959.2,0.77164274]
[1731107436912,0.7534,2959.6,2959.2,1.58131638]
[1731107439239,0.7534,2959.6,2959.2,0.87724914]
[1731107441336,0.7534,2959.6,2958.7,0.70406724]
[1731107441532,0.7534,2959.6,2958.7,0.87662917]
[1731107441838,0.7534,2959.6,2958.8,0.87662917]
[1731107442032,0.7534,2959.6,2958.6,0.70406724]
[1731107442341,0.7534,2959.6,2958.6,0.87662075]
[1731107444745,0.7534,2959.6,2958.5,3.58694864]
[1731107444951,0.7534,2959.6,2958.8,2.8828814]
[1731107445175,0.7534,2959.6,2959.1,2.8828814]
[1731107447048,0.7534,2959.6,2959.0,2.16519876]
[1731107452179,0.7534,2959.6,2958.6,0.77410338]
[1731107452984,0.7534,2959.6,2958.7,0.8184]
[1731107453288,0.7534,2959.6,2958.8,2.95046602]
[1731107454979,0.7534,2959.6,2958.8,2.8828814]
[1731107457259,0.7534,2959.6,2958.9,0.06758387]
[1731107457789,0.0507004,2960.0,2958.7,1.52483436]
[1731107457790,0.7509,2959.9,2959.2,0.7676]
[1731107457988,0.7509,2959.9,2959.3,0.06757248]
[1731107460182,1.06011396,2960.1,2959.7,2.8828814]
[1731107460385,1.06011396,2960.1,2960.0,2.8828814]
[1731107461525,1.06011396,2960.1,2959.7,2.8828814]
[1731107461848,0.7509,2960.4,2959.5,2.16519876]
[1731107463927,0.7509,2960.4,2959.4,0.06757007]
[1731107464450,0.7509,2960.4,2959.3,2.8828814]
[1731107464616,0.7509,2960.4,2959.4,0.06757208]
[1731107465218,0.7509,2960.4,2959.3,2.8828814]
[1731107465917,0.7509,2960.4,2959.4,0.06757209]
[1731107468843,0.7509,2960.4,2959.3,2.8828814]
[1731107469936,0.7509,2960.4,2959.4,0.06757215]
[1731107471560,0.9320014,2960.4,2959.4,0.06757215]
[1731107474661,0.7509,2960.4,2959.4,0.06757215]
[1731107476060,0.7509,2960.4,2959.3,2.8828814]
[1731107476261,0.7509,2960.4,2959.4,0.06757213]
[1731107477171,0.7509,2960.4,2959.4,0.94366119]
[1731107477899,0.7509,2960.4,2959.4,0.06757213]
[1731107478265,0.7509,2960.4,2959.4,0.94386953]
[1731107479102,0.7928,2960.2,2959.4,0.94386953]
[1731107480599,0.7928,2960.2,2959.4,1.65030127]
[1731107481098,0.7928,2960.2,2959.6,2.8828814]
[1731107481271,0.7928,2960.2,2959.7,0.06756662]
[1731107482609,0.7928,2960.2,2959.6,2.8828814]
[1731107483706,0.7928,2960.2,2959.7,0.06756664]
[1731107486089,0.7928,2960.2,2959.8,0.8018]
[1731107486414,0.7928,2960.2,2959.9,0.06756099]
[1731107488190,0.7928,2960.2,2959.7,2.87163312]
[1731107488391,0.7928,2960.2,2959.7,2.16519876]
[1731107493708,0.7928,2960.2,2959.4,0.77400462]
[1731107493924,0.7928,2960.2,2959.4,1.64993942]
[1731107494524,0.7928,2960.2,2959.5,0.8759348]
[1731107494819,0.7928,2960.2,2959.4,0.06757026]
[1731107494987,0.7928,2960.2,2959.4,0.87607594]
[1731107496928,0.7928,2960.2,2959.4,0.94364886]
[1731107497503,0.7928,2960.2,2959.4,1.65008322]
[1731107497701,0.7928,2960.2,2959.5,0.87607594]
[1731107498129,0.7928,2960.2,2959.4,0.06757292]